Cogmind - Beta 14 @@@ ROGUE MODE // 2024.08.09 @ 00:07:05 Player: Elly Result: Destroyed by S-10 Pest with Light Assault Rifle Performance ------------- Evolutions (1) 500 Regions Visited (2) 400 Robots Destroyed (15) 75 Value Destroyed (315) 315 Prototype IDs (0) 0 Alien Tech Used (0) 0 Bonus (0) 0 TOTAL SCORE: 1290 Bonus ------- None Cogmind --------- Core Integrity 0/400 Matter 300/300 Energy 100/100 System Corruption 5% Temperature Cool (0) Movement Core (200) Ox3 Location -9/Materials Parts ------- > --- POWER (2) -------- (None) > --- PROPULSION (3) --- (None) > --- UTILITY (2) ------ Medium Storage Unit > --- WEAPON (2) ------- (None) > --- INVENTORY (10) --- Light Ion Engine Light Ion Engine Wheel Flight Unit Flight Unit Signal Interpreter Assault Rifle Assault Rifle Grenade Launcher Mining Laser Peak State ------------ > --- POWER ------------ Light Ion Engine > --- PROPULSION ------- Aluminum Leg Wheel Hover Unit > --- UTILITY ---------- Medium Storage Unit Power Shielding > --- WEAPON ----------- Beam Rifle Light Assault Rifle > --- INVENTORY -------- Light Ion Engine Light Ion Engine Wheel Flight Unit Flight Unit Signal Interpreter Assault Rifle Assault Rifle Grenade Launcher Mining Laser [Rating: 10] Favorites ----------- Power Light Ion Engine Engine Light Ion Engine Propulsion Wheel Treads Light Treads Leg Aluminum Leg Wheel Wheel Hover Unit Hover Unit Flight Unit Flight Unit Utility Medium Storage Unit Device Sensor Array Storage Medium Storage Unit Processor Visual Processing Unit Protection Power Shielding Weapon Light Assault Rifle Energy Gun EM Shotgun Ballistic Gun Light Assault Rifle Launcher Grenade Launcher Build | -11 -10 -9 ------- Run | Yrd Mat Mat Slots Evolved 2 | . . 2 Power 1 | . . 1 Propulsion 1 | . . 1 Utility . | . . . Weapon . | . . . Parts Attached 31 | 5 10 16 Power 7 | 1 1 5 Engine 7 | 1 1 5 Core . | . . . Reactor . | . . . Propulsion 13 | 2 6 5 Treads 1 | . . 1 Leg 1 | . . 1 Wheel 7 | 2 4 1 Hover 1 | . . 1 Flight 3 | . 2 1 Utility 4 | . 2 2 Device 1 | . . 1 Storage 1 | . 1 . Processor 1 | . . 1 Hackware . | . . . Protection 1 | . 1 . Artifact . | . . . Weapon 7 | 2 1 4 Energy Gun 3 | . . 3 Energy Cannon . | . . . Ballistic Gun 3 | 2 . 1 Ballistic Cannon . | . . . Launcher 1 | . 1 . Special Weapon . | . . . Impact Weapon . | . . . Slashing Weapon . | . . . Piercing Weapon . | . . . Special Melee Weapon . | . . . Unidentified Prototypes . | . . . Corrupted Parts 1 | . . 1 System Corruption 5 | . . 5 Parts Lost 7 | . . 7 Power 3 | . . 3 Propulsion 3 | . . 3 Utility . | . . . Weapon 1 | . . 1 Highest Loss Streak 3 | . . 3 To Critical Strikes . | . . . Average Slot Usage (%) 78 | . 93 73 Engine 15 | . 14 16 Wheel 15 | . 25 11 Hover 3 | . . 5 Device 1 | . . 2 Storage 11 | . 11 11 Processor 1 | . . 2 Protection 6 | . 11 4 Energy Gun 7 | . . 10 Ballistic Gun 12 | . 19 9 Launcher 2 | . 8 . Peak Build Rating 10 | 5 7 10 Average Rating 7 | 3 6 8 On Entrance 4 | . 5 7 Naked Turns . | . . . Heaviest Build 23 | 7 19 23 Greatest Support 20 | 20 20 20 Greatest Overweight (x) 7 | . 2 7 Average Overweight (x) 1 | . . 1 Largest Inventory Capacity 10 | 5 10 10 Average Capacity 9 | 5 9 10 Most Carried 10 | 2 8 10 Average Carried 7 | . 4 9 Final Capacity 10 | 5 10 10 Final Carried 10 | . 8 10 Class Distribution -------------------- 50% | Scavenger-Mutant 49% | Mutant Dominant Class ---------------- Mutant | -10/Materials Scavenger-Mutant | -9/Materials Resources | -11 -10 -9 ----------- Run | Yrd Mat Mat Matter Collected 540 | 246 101 193 Remotely . | . . . Salvage Created 408 | 38 42 328 Parts 40 | 1 7 32 Haulers Intercepted . | . . . Recyclers Shooed 2 | . . 2 Parts Field Recycled . | . . . Retrieved Matter . | . . . Parts Self-Destructed . | . . . Prevented . | . . . Kills | -11 -10 -9 ------- Run | Yrd Mat Mat Combat Hostiles Destroyed 9 | 1 1 7 Guns 8 | 1 . 7 AOE 1 | . 1 . Classes Destroyed 5 | 1 3 1 Worker 1 | . 1 . Watcher 5 | . 1 4 Swarmer 4 | . 1 3 Grunt 4 | 1 . 3 Sentry 1 | . . 1 Best Kill Streak 5 | 1 1 5 Combat Bots Only 4 | 1 1 4 Max Kills in Single Turn 1 | 1 1 1 Gunslinging . | . . . Exploded 1 | . 1 . Melee . | . . . Uniques/NPCs Destroyed . | . . . Combat | -11 -10 -9 -------- Run | Yrd Mat Mat Hostile Shots Fired 151 | 1 15 135 Missed 38 | . 5 33 Damage Taken 1062 | 11 134 917 Core 430 | . 23 407 Absorbed by Shields . | . . . Redirected to Shielding 18 | . 1 17 Core Remaining (%) 95 | 100 90 . Volleys Fired 41 | 1 3 37 Largest 2 | 2 2 2 Hottest 76 | 40 50 76 Shots Fired 76 | 2 6 68 Gun 75 | 2 5 68 Cannon . | . . . Launcher 1 | . 1 . Special . | . . . Kinetic 40 | 2 5 33 Thermal 18 | . . 18 Explosive 1 | . 1 . Electromagnetic 17 | . . 17 Robot Hit Streak 15 | 2 1 15 Robot Miss Streak 5 | . 3 5 Penetration Max . | . . . Secondary Targets 2 | . . 2 Max Gunslinging Chain 1 | . . 1 Shots Hit Robots 38 | 2 2 34 Core Hits 25 | 2 2 21 Critical Kills . | . . . Critical Parts Destroyed . | . . . Critical Strikes . | . . . Melee Attacks . | . . . Impact . | . . . Slashing . | . . . Piercing . | . . . Sneak Attacks . | . . . Combat Hostiles . | . . . Follow-up Attacks . | . . . Damage Inflicted 553 | 24 52 477 Guns 488 | 24 13 451 Cannons . | . . . Explosions 24 | . 24 . Melee . | . . . Ramming 41 | . 15 26 Kinetic 169 | 24 13 132 Thermal 134 | . . 134 Explosive 24 | . 24 . Electromagnetic 185 | . . 185 Impact . | . . . Slashing . | . . . Piercing . | . . . Highest Corruption 5 | . . 5 Average Corruption 5 | . . 5 Corruption Purged . | . . . Corruption Blocked . | . . . Effects 6 | . . 6 Matter Fused 3 | . . 3 Heat Flow Errors 1 | . . 1 Data Loss (minor) 1 | . . 1 Weapon Failures 1 | . . 1 Overload Shots . | . . . Overflow Damage . | . . . Projectiles . | . . . Explosions . | . . . Melee . | . . . Knockbacks . | . . . Impact . | . . . Kinetic . | . . . Secondary . | . . . Self-Inflicted Damage 22 | . 13 9 Shots 1 | . 1 . Rammed 21 | . 4 17 Targets Rammed 21 | . 4 17 Kicked . | . . . Crushed . | . . . Highest Temperature 242 | . . 242 Average Temperature 40 | . . 40 Received Heat Transfer 105 | 6 . 99 Siege Activations . | . . . Robots Corrupted . | . . . Combat Hostiles . | . . . Parts Fried 1 | . . 1 Impact Corruptions . | . . . Robots Melted . | . . . Combat Hostiles . | . . . Parts Melted 1 | . . 1 Heat Transferred 333 | . . 333 Parts Sabotaged . | . . . Parts Stolen . | . . . Parts Stripped . | . . . Power Chain Reactions . | . . . Alert | -11 -10 -9 ------- Run | Yrd Mat Mat Peak Influence 208 | 20 69 208 Initial 28 | . 13 28 Average 73 | 1 42 91 Maximum Alert Level 1 | . . 1 Low Security (%) 90 | 100 100 86 Level 1 9 | . . 13 Level 2 . | . . . Level 3 . | . . . Level 4 . | . . . Level 5 . | . . . High Security . | . . . Max Security . | . . . Squads Dispatched . | . . . Investigation . | . . . Extermination . | . . . Reinforcement . | . . . Assault . | . . . Garrison . | . . . Intercept . | . . . Searches Triggered . | . . . Construction Impeded . | . . . Haulers Reinforced . | . . . Active Scanning Responses . | . . . Cargo Convoy Interrupts . | . . . Stealth | -11 -10 -9 --------- Run | Yrd Mat Mat Distress Signals 3 | . . 3 Communications Jammed . | . . . Distress Signals . | . . . Times Spotted 28 | 1 4 23 Peak Tracking Total 5 | 1 3 5 Tactical Retreats 1 | . . 1 Traps | -11 -10 -9 ------- Run | Yrd Mat Mat Traps Triggered 3 | . . 3 Indirectly . | . . . Trap Hack Attempts . | . . . Triggered . | . . . Disarmed . | . . . Reprogrammed . | . . . Reused . | . . . Traps Extracted . | . . . Installed . | . . . Triggered . | . . . Machines | -11 -10 -9 ---------- Run | Yrd Mat Mat Machines Disabled . | . . . Max in Single Turn . | . . . Machines Repaired . | . . . Machines Dismantled . | . . . Machines Sabotaged . | . . . Overloaded Fab Kills . | . . . Hacking | -11 -10 -9 --------- Run | Yrd Mat Mat Machines Accessed 3 | . 1 2 Terminals 2 | . 1 1 Fabricators . | . . . Repair Stations . | . . . Recycling Units 1 | . . 1 Scanalyzers . | . . . Garrison Access . | . . . Total Hacks 6 | . 2 4 Successful 3 | . . 3 Failed 3 | . 2 1 Catastrophic . | . . . Database Lockouts . | . . . Manual 1 | . 1 . Terminals 3 | . 2 1 Fabricators . | . . . Repair Stations . | . . . Recycling Units 3 | . . 3 Scanalyzers . | . . . Garrison Access . | . . . Terminal Hacks 1 | . . 1 Zone Layout 1 | . . 1 Fabricator Hacks . | . . . Repair Station Hacks . | . . . Recycling Unit Hacks 2 | . . 2 Process 1 | . . 1 Report Inventory 1 | . . 1 Scanalyzer . | . . . Garrison Access Hacks . | . . . Unauthorized Hacks . | . . . Terminals . | . . . Fabricators . | . . . Repair Stations . | . . . Recycling Units . | . . . Scanalyzers . | . . . Garrison Access . | . . . Data Cores Recovered . | . . . Used . | . . . Hacking Detections 1 | . . 1 Full Trace Events . | . . . Feedback Events . | . . . Feedback Blocked . | . . . Robot Schematics Acquired . | . . . Robots Built . | . . . Authchips . | . . . Time . | . . . Total Robot Build Rating . | . . . Part Schematics Acquired . | . . . Parts Built . | . . . Authchips . | . . . Time . | . . . Total Part Build Rating . | . . . Parts Repaired . | . . . Time . | . . . Parts Recycled . | . . . Recycled Matter . | . . . Retrieved Matter . | . . . Retrieved Components . | . . . Parts Scanalyzed . | . . . Part Schematics Acquired . | . . . Parts Damaged . | . . . Bothacking | -11 -10 -9 ------------ Run | Yrd Mat Mat Used RIF Installer . | . . . Robots Hacked . | . . . Non-combat . | . . . Combat . | . . . Robot Hacks Applied . | . . . Relay Couplers Released . | . . . Fabnet Peak Effective % . | . . . Robots Rewired . | . . . Allies Hacked . | . . . Hacks Repelled . | . . . Allies | -11 -10 -9 -------- Run | Yrd Mat Mat Total Allies . | . . . Largest Group . | . . . Highest-Rated Group . | . . . Highest-Rated Ally . | . . . Total Orders . | . . . Ally Attacks . | . . . Total Damage . | . . . Kills . | . . . Allies Corrupted . | . . . Allies Melted . | . . . Intel | -11 -10 -9 ------- Run | Yrd Mat Mat Robot Analysis Total . | . . . Derelict Logs Recovered . | . . . Drone Launches . | . . . Drone Recoveries . | . . . Exploration | -11 -10 -9 ------------- Run | Yrd Mat Mat Turns Passed 1154 | 85 276 793 Spaces Moved 940 | 107 312 521 Core 88 | 48 . 40 Treads . | . . . Legs 1 | . . 1 Wheels 813 | 59 285 469 Hover 10 | . . 10 Flight 28 | . 27 1 Fastest Speed 37 | 50 37 80 Average Speed 99 | 66 76 120 Slowest Speed 400 | 80 197 400 Overloaded Moves . | . . . Propulsion Burnouts . | . . . Robots Hopped 1 | . 1 . Cave-ins Triggered . | . . . Exploration Rate (%) 29 | 9 45 34 Regions Visited 2 Branch Regions . Pre-discovered Areas . | . . . Known Exits Taken . | . . . Unknown Exits Taken 2 | 1 1 . Scrap Searched . | . . . Spaces Dug . | . . . Terrain Destroyed 9 | . 9 . Melee . | . . . Projectile . | . . . AOE 9 | . 9 . Terrain Rammed . | . . . Walls Destroyed . | . . . Machines Disabled . | . . . Actions | -11 -10 -9 --------- Run | Yrd Mat Mat Total 1060 | 119 343 598 Wait . | . . . Move 936 | 106 309 521 Hop 1 | . 1 . Pick Up 15 | 6 8 1 Fast Attach 15 | . 2 13 Attach 13 | 5 8 . Detach 10 | . 8 2 Swap 3 | . . 3 Drop 5 | 1 . 4 Fire 41 | 1 3 37 Melee . | . . . Ram 21 | . 4 17 Kick . | . . . Crush . | . . . Escape Stasis . | . . . Rewire . | . . . Trap . | . . . Miscellaneous . | . . . Route ------- -11/Scrapyard -10/Materials (discovered 2 exits: *Mat / [*Min]) -9/Materials History --------- Turn | Location | Event 2 | -11/Scrapyard | Met Revision 17 71 | -11/Scrapyard | Discovered new exit (range 8) 86 | -11/Scrapyard | Entered Materials 134 | -10/Materials | Discovered new exit (range 9) 234 | -10/Materials | Discovered new exit (range 5) 310 | -10/Materials | Build established: Mutant 362 | -10/Materials | Entered another Materials area 362 | -9/Materials | Evolved 2 slots: Power x1, Propulsion x1 780 | -9/Materials | Build established: Scavenger-Mutant 1118 | -9/Materials | Core integrity fell below 50% 1130 | -9/Materials | Lost 3 parts (1p1n1w) 1144 | -9/Materials | Core integrity fell below 20% 1155 | -9/Materials | Destroyed by S-10 Pest with Light Assault Rifle Last Messages --------------- EM Shotgun destroyed. S-10 Pest destroyed. M-13 Machinist repairs A-02 Transporter. K-01 Serf collects debris. Acquired 20 matter. K-01 Serf collects debris. Acquired Lgt. Ion Engine. Slammed into S-10 Pest. Destabilizing: Core damaged (-12). Slammed into S-10 Pest. S-10 Pest IFF system glitched. M-13 Machinist repairs T-07 Excavator. Slammed into S-10 Pest. M-13 Machinist repairs K-01 Serf. Slammed into S-10 Pest. M-13 Machinist repairs S-10 Pest. Lgt. Ion Engine destroyed. System corrupted: Heat flow error (+270). Slammed into S-10 Pest. [Achievement: First Step to Greatness] Map ----- +----------------------------------------------------+ | ?????????????????????????????????????????????????? | | ?????????????????????????????????????????????????? | | ?????????????????????????????????????????????????? | | ?????????????????????????????????????????????????? | | ?????????????????????????????????????????????????? | | ?????????????????????????????????????????????????? | | ?????????????????????????????????????????????????? | | ?????????????????????????????????????????????????? | | ?????????????????????????????????????????????????? | | ???????????????????????###???????????????????????? | | ????????????????#?????? #???????????????????????? | | ????????????????# ??""" #???????????????????????? | | ????????????????# """"" #???????????????????????? | | ????????????????# """"" #???????????????????????? | | ????????????????? """ #???????????????????????? | | ??????????????#??? #???????????????????????? | | ??????????????# ?? #???????????????????????? | | ?????????##???# ??? #??????? ???????????????? | | ?????????? ??# ???? ???????T ????????????????? | | ??????????? ?# #####+##??????""? ??????????????? | | ????????? """ # ##### !#?????????????? | | ????????? """ + ???????????? | | ###?????? """ # ##### ##??????????????????? | | #???????????### #####+########????????????? | | # #?????????????# # s s #????????????? | | # #?????????????# #%@s """ """ #????????????? | | # #?????????????# # m """ ""???????????????? | | # #?????????????# ^ + """ """ #????????????? | | # ####???######## ^ # #????????????? | | ##### ## * ##############????????????? | | #?????????????????????????? | | #?????????????????????????? | | #?????????????????????????? | | ##### ##### #?????????????????????????? | | # ############???# #?????????????????????????? | | # # #??????# #?????????????????????????? | | + #??????# #?????????????????????????? | | # #??????+ +?????????????????????????? | | # #??????# #?????????????????????????? | | ##### #??????# #?????????????????????????? | | ????# = #??????# #?????????????????????????? | | ????# #??????# ?????????????????????????? | | ????# #??????? ?????????????????????????? | | ????# #??????? ????????????????????????? | | ????# #???????? ??#????????????????????????? | | ????# #????????????????????????????????????? | | ????#########????????????????????????????????????? | | ?????????????????????????????????????????????????? | | ?????????????????????????????????????????????????? | | ????" ? ?????????????????????????????????????????? | +----------------------------------------------------+ Best States ------------- Heat Dissipation 28 Energy Generation 15 Energy Capacity 275 Matter Stores 300 Matter Capacity 300 Sight Range 18 Robot Scan Range 14 Terrain Scan Density 10 Power Shielding 33 Evasion (%) 62 Item Schematics ----------------- None Robot Schematics ------------------ None Fabricated ------------ Nothing Alien Tech Used ----------------- None Achievements -------------- Crack Shot First Step to Greatness Storm Trooper Challenges ------------ None Game ------ Seed TrackerRelayMachine Manual? 0 Play Time 00:28:15 Cumulative 0.4 hours Start 2024.08.08 @ 23:36:32 End 2024.08.09 @ 00:07:05 Sessions 1 Manual Loads 0 Difficulty Rogue Special Mode None Game No. 1 Rogue 1 Adventurer 0 Explorer 0 Win Type - Total 0 Types 0/0/0/0/0/0/0/0/0 Lore% 0 Gallery% 1 Achievement% 1 Wizard Run 0 Options --------- Layout 1 ASCII 0 Keyboard 0 Movement Numpad Keybinds 0 Fullscreen 0 Font 20/SmallcapsGlow Map View 50x35 Zoom Use 0% Tactical HUD 0 Map Filters NONE Filters NONE Steam 1 RUN: de71862e-38af-48bb-8e7d-3fa1633a5322